bitfinex-derivatives/quotes_SOLF0:USTF0_20250514
["timestamp","ask_amount","ask_price","bid_price","bid_amount"]
[1747249100258,59.84,176.39,176.33,11.4528]
[1747249100660,5.6692,176.37,176.34,5.6699]
[1747249100861,5.6692,176.37,176.33,5.7825]
[1747249101258,5.6692,176.37,176.33,11.4527]
[1747249101458,5.6692,176.37,176.33,5.7825]
[1747249101861,5.6692,176.37,176.34,5.6699]
[1747249103363,5.6688,176.38,176.35,5.6695]
[1747249103561,5.6688,176.38,176.33,5.7825]
[1747249104059,5.6688,176.38,176.35,5.6695]
[1747249104360,65.5084,176.39,176.33,5.7825]
[1747249104765,5.6687,176.38,176.35,5.6694]
[1747249104958,59.84,176.39,176.33,5.7825]
[1747249105354,59.84,176.39,176.35,5.6694]
[1747249105561,65.5086,176.39,176.35,5.6694]
[1747249105757,59.84,176.39,176.33,5.7825]
[1747249106060,59.84,176.39,176.33,1.9299]
[1747249106765,59.84,176.39,176.32,59.12]
[1747249106953,5.6696,176.36,176.32,64.7904]
[1747249107362,5.6696,176.36,176.32,59.12]
[1747249107666,5.6699,176.35,176.32,59.12]
[1747249107962,59.5,176.35,176.28,59.14]
[1747249108364,5.6701,176.34,176.31,5.6707]
[1747249111061,59.5,176.35,176.31,5.6707]
[1747249111258,59.5,176.35,176.29,5.6714]
[1747249111462,118.64,176.35,176.29,5.6714]
[1747249112065,5.6709,176.32,176.28,64.8118]
[1747249112255,118.64,176.35,176.28,64.8118]
[1747249112460,118.64,176.35,176.26,1.8285]
[1747249112655,5.6721,176.28,176.25,5.6726]
[1747249113061,59.5,176.3,176.25,5.6726]
[1747249113365,59.5,176.3,176.24,64.813]
[1747249114664,5.6725,176.27,176.24,64.813]
[1747249116267,59.5,176.3,176.22,5.6736]
[1747249116465,59.5,176.3,176.21,1.7822]
[1747249116964,5.6729,176.25,176.21,1.7822]
[1747249117557,59.66,176.26,176.21,1.7822]
[1747249118767,59.66,176.26,176.24,5.673]
[1747249119571,59.66,176.26,176.23,5.6734]
[1747249120467,59.66,176.26,176.24,5.6732]
[1747249121765,5.6713,176.3,176.27,5.6722]
[1747249121970,64.38,176.4,176.29,9.98221199]
[1747249122367,5.6686,176.39,176.29,9.98221199]
[1747249122867,133.0078,176.41,176.36,5.6692]
[1747249124268,132.8878,176.41,176.37,5.669]
[1747249124573,127.22,176.41,176.37,5.669]
[1747249125865,1.9445,176.44,176.33,62.92]
[1747249126072,64.24,176.44,176.35,9.98221199]
[1747249126666,5.6673,176.43,176.38,5.6686]
[1747249127660,69.9068,176.44,176.39,5.6682]
[1747249127862,64.24,176.44,176.36,1.7977]
[1747249128267,5.6671,176.43,176.38,5.6684]
[1747249128569,64.16,176.44,176.36,1.7977]
[1747249129965,5.6676,176.42,176.37,5.6689]
[1747249130170,64.16,176.44,176.37,5.6689]
[1747249130370,64.16,176.44,176.36,1.7977]
[1747249131374,5.6677,176.41,176.36,7.4667]
[1747249132976,5.6681,176.4,176.36,7.4667]
[1747249133375,64.16,176.44,176.36,7.4667]
[1747249133579,5.668,176.4,176.36,7.4667]
[1747249135581,5.6679,176.41,176.37,5.669]
[1747249136481,5.6679,176.41,176.38,5.6687]
[1747249137582,5.6675,176.42,176.38,5.6687]
[1747249137982,64.16,176.44,176.38,5.6687]
[1747249138181,5.6677,176.41,176.38,5.6687]
[1747249139182,68.5666,176.45,176.38,9.98221199]
[1747249139382,5.6666,176.45,176.38,9.98221199]
[1747249139584,5.6673,176.43,176.39,5.6683]
[1747249139878,66.2,176.47,176.37,3.8466]
[1747249140478,490.16,176.48,176.37,3.8466]
[1747249140679,66.3,176.47,176.37,3.8466]
[1747249140883,66.3,176.47,176.38,66.18]
[1747249141079,5.6665,176.45,176.38,66.18]
[1747249141581,5.6665,176.45,176.41,5.6675]
[1747249141977,5.6655,176.48,176.38,76.16221199]
[1747249142174,132.9,176.49,176.38,76.16221199]
[1747249142383,5.6658,176.47,176.38,76.16221199]
[1747249142783,5.6658,176.47,176.44,5.6667]
[1747249143484,5.6662,176.46,176.43,5.667]
[1747249143885,132.9,176.49,176.42,5.6673]
[1747249144280,132.9,176.49,176.38,76.16221199]
[1747249144986,5.6674,176.43,176.39,5.6683]
[1747249145187,5.6674,176.43,176.38,76.16221199]
[1747249145686,5.6674,176.43,176.39,5.6683]
[1747249146390,5.6674,176.43,176.4,5.6679]
[1747249147986,5.6668,176.44,176.41,5.6677]
[1747249149288,5.6667,176.45,176.42,5.6673]
[1747249150290,132.9,176.49,176.39,5.6681]
[1747249150490,9.98221199,176.47,176.38,66.18]
[1747249151084,9.98221199,176.47,176.39,5.6683]
[1747249151486,132.9,176.49,176.38,66.18]
[1747249151687,132.9,176.49,176.41,5.6676]
[1747249153086,5.6671,176.43,176.4,5.668]
[1747249157193,66.18,176.49,176.38,66.18]
[1747249157497,133.64,176.49,176.4,9.98221199]
[1747249158398,5.6662,176.46,176.43,5.6668]
[1747249158900,133.64,176.49,176.43,5.6668]
[1747249159102,5.6659,176.47,176.43,5.6668]
[1747249159495,5.6659,176.47,176.44,5.6666]
[1747249162404,71.8454,176.49,176.46,5.6661]
[1747249162598,66.18,176.49,176.4,9.98221199]
[1747249162803,67.66,176.5,176.4,9.98221199]
[1747249163104,5.6658,176.47,176.4,9.98221199]
[1747249164006,133.96,176.53,176.43,9.98221199]
[1747249164207,133.96,176.53,176.44,1.839]
[1747249164505,5.665,176.5,176.46,5.666]
[1747249164704,5.665,176.5,176.44,1.839]
[1747249165000,5.665,176.5,176.46,5.6658]
[1747249165205,134.2,176.53,176.46,9.98221199]
[1747249165507,68.62,176.56,176.46,9.98221199]
[1747249165803,5.6643,176.52,176.48,5.6654]
[1747249166306,5.6646,176.51,176.47,5.6657]
[1747249166505,68.62,176.56,176.45,9.98221199]
[1747249166805,68.62,176.56,176.46,5.6658]
[1747249167411,5.6648,176.51,176.46,5.6658]
[1747249167601,68.58,176.53,176.46,5.6658]
[1747249168103,5.6645,176.51,176.46,5.6658]
[1747249168308,68.52,176.53,176.46,5.6658]
[1747249168697,5.6648,176.51,176.46,5.6658]
[1747249168906,68.52,176.53,176.46,5.6658]
[1747249169205,68.52,176.53,176.45,9.98221199]
[1747249169405,5.6644,176.52,176.45,9.98221199]
[1747249169602,5.6644,176.52,176.47,5.6655]
[1747249169802,68.52,176.53,176.45,9.98221199]
[1747249170005,68.52,176.53,176.44,5.4945]
[1747249170404,5.6648,176.51,176.44,5.4945]
[1747249171308,5.6648,176.51,176.46,5.6661]
[1747249171504,5.6642,176.52,176.44,5.4945]
[1747249171705,68.52,176.53,176.44,15.47671199]
[1747249171910,68.52,176.53,176.47,5.6656]
[1747249172112,5.6647,176.51,176.47,5.6656]
[1747249172712,5.6649,176.5,176.47,5.6656]
[1747249173013,68.52,176.53,176.44,15.47671199]
[1747249173610,68.52,176.53,176.45,5.6663]
[1747249173909,5.6653,176.49,176.45,5.6663]
[1747249174112,5.6653,176.49,176.46,5.666]
[1747249174312,68.52,176.53,176.44,15.47671199]
[1747249175817,68.52,176.53,176.48,5.6654]
[1747249177316,68.52,176.53,176.49,5.665]
[1747249178016,68.52,176.53,176.48,5.6654]
[1747249178315,68.52,176.53,176.44,15.47671199]
[1747249178818,69.28,176.54,176.44,15.47671199]
[1747249179716,74.0429,176.56,176.44,15.47671199]
[1747249179916,69.24,176.55,176.44,15.47671199]
[1747249180418,74.9034,176.55,176.44,15.47671199]
[1747249181110,5.6635,176.54,176.44,15.47671199]
[1747249181318,69.24,176.55,176.44,15.47671199]
[1747249181513,74.9033,176.55,176.51,5.6643]
[1747249182019,74.9033,176.55,176.44,15.47671199]
[1747249182215,491.7323,176.57,176.44,15.47671199]
[1747249182216,5.6609,176.63,176.48,9.98221199]
[1747249182514,75.38,176.69,176.56,9.98221199]
[1747249182713,75.9,176.68,176.56,9.98221199]
[1747249182917,5.6596,176.67,176.57,9.98221199]
[1747249183209,75.9,176.68,176.57,9.98221199]
[1747249183416,5.66,176.66,176.59,5.6619]
[1747249183717,75.9,176.68,176.59,5.6619]
[1747249183918,75.9,176.68,176.57,5.6623]
[1747249184113,5.6602,176.65,176.56,1.8505]
[1747249184721,5.6604,176.64,176.58,5.6621]
[1747249185118,5.6604,176.64,176.56,1.8505]
[1747249185318,75.9,176.68,176.56,1.8505]
[1747249185621,85.88221199,176.68,176.56,1.8505]
[1747249185919,85.88221199,176.68,176.56,7.5133]
[1747249186222,85.88221199,176.68,176.56,1.8505]
[1747249186421,85.88221199,176.68,176.57,5.6625]
[1747249186723,9.98221199,176.68,176.57,5.6625]
[1747249186922,161.18,176.67,176.57,5.6625]
[1747249187120,5.6609,176.63,176.57,5.6625]
[1747249187323,161.18,176.67,176.57,5.6625]
[1747249187622,5.6609,176.63,176.57,5.6625]
[1747249188126,5.661,176.62,176.57,5.6625]
[1747249188624,5.661,176.62,176.58,5.6622]
[1747249189121,5.6607,176.63,176.58,5.6622]
[1747249191320,5.6604,176.64,176.56,1.8505]
[1747249191625,5.6604,176.64,176.59,5.6617]
[1747249191821,5.6601,176.65,176.56,1.8505]
[1747249192222,1.7712,176.7,176.58,9.98221199]
[1747249192418,5.6599,176.66,176.58,9.98221199]
[1747249192625,80.08,176.69,176.58,9.98221199]
[1747249193026,5.6598,176.66,176.58,9.98221199]
[1747249193623,5.6598,176.66,176.62,5.6608]
[1747249194716,89.88221199,176.69,176.56,3.6975]
[1747249195321,5.6603,176.65,176.6,5.6616]
[1747249195728,89.88221199,176.69,176.6,5.6616]
[1747249195928,89.88221199,176.69,176.61,5.6613]
[1747249196519,80.02,176.68,176.57,9.98221199]
[1747249196925,80.02,176.68,176.57,11.87361199]
[1747249197323,5.6601,176.65,176.57,11.87361199]
[1747249197631,80.02,176.68,176.6,9.98221199]
[1747249197924,80.5,176.81,176.67,9.98221199]
[1747249198127,80.36,176.84,176.67,80.36]
[1747249198327,9.98221199,176.83,176.69,9.98221199]
[1747249198527,9.98221199,176.8,176.69,9.98221199]
[1747249198822,9.98221199,176.82,176.67,80.36]
[1747249199027,5.6564,176.77,176.69,9.98221199]
[1747249199325,9.98221199,176.82,176.69,9.98221199]
[1747249199527,9.98221199,176.82,176.67,80.36]
[1747249199728,9.98221199,176.82,176.67,90.34221199]
[1747249200129,9.98221199,176.82,176.69,5.6586]
[1747249200130,5.6568,176.76,176.69,5.6586]
[1747249200329,80.9,176.79,176.67,90.34221199]
[1747249200735,9.98221199,176.76,176.66,80.34]
[1747249200922,9.98221199,176.76,176.65,5.4489]
[1747249201130,5.658,176.72,176.66,5.6594]
[1747249201323,1.8709,176.78,176.65,5.4489]
[1747249201829,5.658,176.72,176.67,5.6592]
[1747249202029,1.8709,176.78,176.67,5.6592]
[1747249202435,5.658,176.72,176.67,5.6592]
[1747249202634,1.8709,176.78,176.66,5.6597]
[1747249202828,1.8709,176.78,176.65,3.6085]
[1747249203025,9.98221199,176.76,176.65,9.2682]
[1747249203231,9.98221199,176.76,176.65,3.6085]
[1747249203429,1.8709,176.78,176.65,3.6085]
[1747249203636,5.6583,176.71,176.66,5.6594]
[1747249204035,5.6583,176.71,176.65,3.6085]
[1747249204237,1.8709,176.78,176.65,3.6085]
[1747249204535,82.4709,176.78,176.66,9.98221199]
[1747249204733,82.4709,176.78,176.7,5.6582]
[1747249204934,82.4709,176.78,176.66,11.81291199]
[1747249205236,5.658,176.72,176.67,5.6591]
[1747249205436,1.8709,176.78,176.68,80.32]
[1747249205735,80.56,176.8,176.69,9.98221199]
[1747249205935,5.657,176.75,176.71,5.6581]
[1747249206938,80.32,176.8,176.69,9.98221199]
[1747249207237,160.6,176.81,176.69,9.98221199]
[1747249207438,80.32,176.81,176.69,9.98221199]
[1747249207636,160.54,176.81,176.69,9.98221199]
[1747249208045,170.52221199,176.81,176.69,9.98221199]
[1747249208439,170.52221199,176.81,176.68,80.32]
[1747249208840,170.52221199,176.81,176.73,5.6572]
[1747249209440,5.6565,176.77,176.73,5.6572]
[1747249209640,170.52221199,176.81,176.73,5.6572]
[1747249209941,5.6564,176.77,176.73,5.6572]
[1747249210142,170.52221199,176.81,176.72,5.6577]
[1747249210441,170.52221199,176.81,176.69,9.98221199]
[1747249210645,170.52221199,176.81,176.71,5.658]
[1747249211141,5.657,176.75,176.71,5.658]
[1747249211442,170.52221199,176.81,176.71,5.658]
[1747249211742,170.52221199,176.81,176.7,5.6584]
[1747249212240,5.6574,176.74,176.71,5.6581]
[1747249212444,170.52221199,176.81,176.69,9.98221199]
[1747249212743,170.52221199,176.81,176.71,5.658]
[1747249213042,170.52221199,176.81,176.69,9.98221199]
[1747249213545,170.52221199,176.81,176.72,5.6576]
[1747249213546,5.6563,176.77,176.72,5.6576]
[1747249213841,170.52221199,176.81,176.69,9.98221199]
[1747249214041,170.52221199,176.81,176.68,80.32]
[1747249214237,9.98221199,176.78,176.68,80.32]
[1747249214740,5.6571,176.75,176.68,80.32]
[1747249215040,9.98221199,176.78,176.71,5.6579]
[1747249215242,170.52221199,176.81,176.68,90.30221199]
[1747249215637,170.52221199,176.81,176.68,80.32]
[1747249216239,5.657,176.75,176.72,5.6577]
[1747249216745,5.657,176.75,176.73,5.6574]
[1747249216939,5.657,176.75,176.68,80.32]
[1747249217445,79.74,176.76,176.66,1.8307]
[1747249217744,9.98221199,176.75,176.66,1.8307]
[1747249217944,5.6577,176.73,176.69,5.6586]
[1747249218142,159.62,176.76,176.65,3.6085]
[1747249218340,9.98221199,176.75,176.67,5.6591]
[1747249218540,11.76791199,176.75,176.65,1.8294]
[1747249219642,5.6589,176.69,176.66,5.6596]
[1747249220846,9.98221199,176.72,176.62,79.88]
[1747249221042,79.12,176.71,176.62,79.88]
[1747249221436,5.6593,176.68,176.65,5.6598]
[1747249221750,79.12,176.71,176.62,79.88]
[1747249222238,5.6587,176.7,176.62,79.88]
[1747249222435,79.12,176.71,176.62,79.88]
[1747249222740,5.6591,176.68,176.65,5.6599]
[1747249223247,9.98221199,176.69,176.6,1.9213]
[1747249223447,9.98221199,176.69,176.58,79.9]
[1747249223738,1.9145,176.68,176.56,9.98221199]
[1747249224244,1.9145,176.68,176.59,9.98221199]
[1747249224845,5.6598,176.66,176.62,5.6607]
[1747249225044,5.6598,176.66,176.6,1.9372]
[1747249225045,159.02,176.71,176.6,1.9372]
[1747249225542,5.6594,176.67,176.64,5.6601]
[1747249226142,78.24,176.71,176.6,85.4334]
[1747249226647,5.6602,176.65,176.61,5.661]
[1747249226943,5.6602,176.65,176.6,85.4334]
[1747249227338,78.24,176.71,176.6,81.8372]
[1747249227535,9.98221199,176.66,176.56,79.9]
[1747249227744,5.6615,176.61,176.57,5.6624]
[1747249227946,88.44221199,176.66,176.56,79.9]
[1747249228444,9.98221199,176.65,176.56,79.9]
[1747249228644,78.46,176.66,176.56,79.9]
[1747249229639,5.6614,176.61,176.58,5.6621]
[1747249229840,78.46,176.66,176.56,79.9]
[1747249230347,5.6604,176.64,176.58,9.98221199]
[1747249230847,5.6604,176.64,176.61,5.6612]
[1747249231243,78.0,176.68,176.58,9.98221199]
[1747249231742,5.6601,176.65,176.58,9.98221199]
[1747249232652,5.6604,176.64,176.58,9.98221199]
[1747249233048,78.0,176.68,176.6,5.6614]
[1747249233244,79.92,176.69,176.58,9.98221199]
[1747249233450,1.8761,176.7,176.61,9.98221199]
[1747249233640,78.68,176.73,176.63,5.6603]
[1747249234252,78.68,176.73,176.62,7.6023]
[1747249234449,78.68,176.73,176.62,1.9414]
[1747249234642,5.6597,176.66,176.63,5.6606]
[1747249234847,9.98221199,176.71,176.62,1.9414]
[1747249235845,5.6602,176.65,176.62,1.9414]
[1747249236051,78.48,176.72,176.62,1.9414]
[1747249236548,78.48,176.72,176.64,5.66]
[1747249238949,5.6593,176.68,176.64,5.66]
[1747249239150,78.48,176.72,176.64,5.66]
[1747249239450,5.6597,176.67,176.63,5.6606]
[1747249239653,78.48,176.72,176.63,5.6606]
[1747249240045,5.6597,176.67,176.63,5.6606]
[1747249240248,88.46221199,176.72,176.63,5.6606]
[1747249240549,88.46221199,176.72,176.62,7.6024]
[1747249241051,9.98221199,176.69,176.6,1.8462]
[1747249241251,89.90221199,176.69,176.57,79.92]
[1747249241452,9.98221199,176.66,176.55,79.92]
[1747249241648,87.52221199,176.66,176.58,5.6622]
[1747249242150,87.52221199,176.66,176.55,79.92]
[1747249242351,87.52221199,176.66,176.59,5.6619]
[1747249243052,87.52221199,176.66,176.55,79.92]
[1747249243551,5.6615,176.61,176.54,79.92]
[1747249243759,79.92,176.69,176.56,9.98221199]
[1747249244056,5.6605,176.64,176.56,9.98221199]
[1747249244450,5.6605,176.64,176.61,5.6612]
[1747249246056,79.92,176.69,176.62,5.6608]
[1747249246253,79.92,176.69,176.57,9.98221199]
[1747249246750,5.6596,176.67,176.58,77.9]
[1747249246956,5.6596,176.67,176.59,79.6417]
[1747249247459,5.6596,176.67,176.6,1.8587]
[1747249247660,5.6598,176.66,176.6,1.8587]
[1747249247860,5.6598,176.66,176.62,5.6608]
[1747249248263,5.6601,176.65,176.62,5.6608]
[1747249248566,79.92,176.69,176.61,5.6612]
[1747249248760,5.6598,176.66,176.6,1.8587]
[1747249249066,5.6598,176.66,176.62,5.6608]
[1747249249554,5.6595,176.67,176.6,1.8587]
[1747249249756,79.92,176.69,176.6,1.8587]
[1747249250265,79.92,176.69,176.61,5.6612]
[1747249250562,79.92,176.69,176.6,1.8587]
[1747249250765,9.98221199,176.68,176.59,77.86]
[1747249250967,9.98221199,176.68,176.58,5.662]
[1747249251165,5.6615,176.61,176.58,5.662]
[1747249251764,5.6617,176.6,176.57,5.6625]
[1747249252155,87.24221199,176.65,176.55,77.86]
[1747249252363,9.98221199,176.62,176.53,1.8318]
[1747249252561,9.98221199,176.59,176.5,99.33784763]
[1747249252769,87.06221199,176.59,176.48,89.67401199]
[1747249253275,5.6627,176.57,176.48,89.67401199]
[1747249253972,5.6627,176.57,176.53,5.6636]
[1747249254268,77.08,176.59,176.48,89.67401199]
[1747249254470,77.08,176.59,176.53,5.6636]
[1747249254667,77.08,176.59,176.48,79.6918]
[1747249254871,5.6631,176.56,176.52,5.664]
[1747249255170,5.6631,176.56,176.48,79.6918]
[1747249255368,154.94,176.59,176.48,79.6918]
[1747249255568,154.94,176.59,176.51,5.6644]
[1747249255870,5.663,176.56,176.48,79.6918]
[1747249256074,154.94,176.59,176.48,79.6918]
[1747249256476,5.6631,176.56,176.48,79.6918]
[1747249256662,154.94,176.59,176.48,79.6918]
[1747249256972,5.6631,176.56,176.53,5.6638]
[1747249259072,5.6627,176.57,176.54,5.6633]
[1747249259274,5.6627,176.57,176.48,79.6918]
[1747249259670,5.6627,176.57,176.54,5.6633]
[1747249260173,5.6624,176.58,176.48,79.6918]
[1747249260369,5.6624,176.58,176.55,5.663]
[1747249260570,567.52,176.66,176.53,87.86221199]
[1747249260777,5.661,176.62,176.53,87.86221199]
[1747249261282,5.6604,176.64,176.53,87.86221199]
[1747249261473,5.6604,176.64,176.54,3.6771]
[1747249261770,84.3201,176.65,176.56,9.98221199]
[1747249261979,78.66,176.65,176.63,5.6604]
[1747249262369,78.66,176.65,176.57,1.8745]
[1747249262569,77.88,176.67,176.64,5.6601]
[1747249262770,78.36,176.69,176.64,5.6601]
[1747249263074,78.36,176.69,176.62,5.6607]
[1747249263281,78.36,176.69,176.57,1.8745]
[1747249263578,5.6602,176.65,176.57,1.8745]
[1747249263775,78.36,176.69,176.57,1.8745]
[1747249264482,5.6604,176.64,176.61,5.6612]
[1747249264777,78.36,176.69,176.6,5.6615]
[1747249265167,78.36,176.69,176.57,1.8745]
[1747249265372,9.98221199,176.67,176.59,5.6619]
[1747249265670,87.86221199,176.67,176.57,1.8745]
[1747249266376,87.86221199,176.67,176.59,5.6617]
[1747249266576,87.86221199,176.67,176.57,1.8745]
[1747249266777,1.8695,176.66,176.57,1.8745]
[1747249266972,5.6615,176.61,176.57,7.5368]
[1747249267375,77.64,176.64,176.57,1.8745]
[1747249267977,5.6619,176.6,176.57,7.537]
[1747249268779,5.6619,176.6,176.58,5.6623]
[1747249269379,87.62221199,176.64,176.54,3.6771]
[1747249269680,9.98221199,176.61,176.5,79.7692]
[1747249269979,9.98221199,176.61,176.51,3.8145]
[1747249270179,5.6621,176.59,176.55,5.663]
[1747249270682,9.98221199,176.61,176.55,5.663]
[1747249271181,5.6623,176.58,176.54,5.6634]
[1747249271583,87.86221199,176.61,176.54,5.6634]
[1747249271777,87.86221199,176.61,176.51,1.876]
[1747249271974,87.86221199,176.61,176.5,79.7692]
[1747249272580,5.6634,176.55,176.51,5.6642]
[1747249272777,77.6,176.58,176.5,79.7692]
[1747249272979,87.58221199,176.58,176.5,79.7692]
[1747249273278,87.58221199,176.58,176.5,85.434]
[1747249273472,87.58221199,176.58,176.5,79.7692]
[1747249273668,87.58221199,176.58,176.45,91.64531199]
[1747249273872,87.58221199,176.58,176.45,93.53391199]
[1747249274970,5.6645,176.51,176.47,5.6655]
[1747249276083,5.6645,176.51,176.48,5.6655]
[1747249276981,5.665,176.5,176.47,5.6658]
[1747249277183,77.9,176.56,176.45,93.53391199]
[1747249277578,5.6645,176.51,176.48,5.6653]
[1747249277782,77.9,176.56,176.45,93.53391199]
[1747249278176,5.6641,176.53,176.45,93.53391199]
[1747249278382,77.9,176.56,176.45,93.53391199]
[1747249278782,5.6644,176.52,176.49,5.6651]
[1747249279280,76.78,176.6,176.45,93.53391199]
[1747249279475,81.8,176.61,176.49,9.98221199]
[1747249279878,77.8,176.61,176.49,9.98221199]
[1747249280082,5.662,176.59,176.5,76.8]
[1747249280484,5.662,176.59,176.55,5.663]
[1747249280683,5.6617,176.6,176.52,9.98221199]
[1747249280888,77.8,176.61,176.53,1.9044]
[1747249281187,5.6616,176.6,176.53,5.5508]
[1747249282586,5.662,176.59,176.53,5.5508]
[1747249283088,5.662,176.59,176.55,5.663]
[1747249283284,77.28,176.65,176.53,5.5508]
[1747249283686,78.6495,176.66,176.53,5.5508]
[1747249283882,5.6607,176.63,176.55,9.98221199]
[1747249284087,157.7495,176.66,176.55,86.76221199]
[1747249284287,157.7495,176.66,176.6,5.6614]
[1747249284489,5.6604,176.64,176.55,86.76221199]
[1747249284990,5.6604,176.64,176.6,5.6614]
[1747249285289,5.6607,176.63,176.55,76.78]
[1747249285490,5.6607,176.63,176.55,86.76221199]
[1747249285789,5.6607,176.63,176.6,5.6615]
[1747249285987,5.6611,176.62,176.55,86.76221199]
[1747249286189,157.7495,176.66,176.57,5.6625]
[1747249286389,157.7495,176.66,176.55,76.78]
[1747249286893,157.7495,176.66,176.56,9.98221199]
[1747249287097,5.6607,176.63,176.56,9.98221199]
[1747249287594,5.6607,176.63,176.59,5.6618]
[1747249290594,157.7495,176.66,176.59,5.6618]
[1747249290595,5.661,176.62,176.59,5.6618]
[1747249290798,157.7495,176.66,176.53,5.5508]
[1747249290997,9.98221199,176.63,176.53,5.5508]
[1747249291501,9.98221199,176.63,176.54,5.6633]
[1747249291702,9.98221199,176.63,176.53,5.5508]
[1747249292101,9.98221199,176.63,176.53,11.2145]
[1747249292601,5.6628,176.57,176.53,11.2145]
[1747249293904,5.663,176.56,176.53,11.2145]
[1747249294194,9.98221199,176.64,176.53,5.5508]
[1747249294603,9.98221199,176.64,176.53,11.2146]
[1747249294799,9.98221199,176.63,176.53,3.7562]
[1747249295003,9.98221199,176.63,176.53,1.9044]
[1747249295204,5.6632,176.56,176.53,7.5682]
[1747249295602,82.7,176.6,176.53,1.9044]
[1747249295803,5.6635,176.54,176.51,5.6644]
[1747249296104,175.54221199,176.6,176.49,82.86]
[1747249296300,5.6638,176.54,176.5,5.6646]
[1747249297005,5.6632,176.55,176.51,5.6643]
[1747249297300,5.6632,176.55,176.49,82.86]
[1747249297504,5.6635,176.54,176.51,5.6642]
[1747249298005,5.6635,176.54,176.49,82.86]
[1747249298203,5.6633,176.55,176.52,5.6641]
[1747249298601,5.6638,176.54,176.51,5.6644]
[1747249298904,9.98221199,176.57,176.46,1.8006]
[1747249299699,9.98221199,176.54,176.46,1.8006]
[1747249300001,91.78221199,176.54,176.46,7.4666]
[1747249300304,174.66221199,176.54,176.43,82.88]
[1747249300506,5.6659,176.47,176.43,82.88]
[1747249300705,9.98221199,176.51,176.43,82.88]
[1747249300902,9.98221199,176.51,176.42,1.7738]
[1747249301113,5.6661,176.47,176.43,5.6669]
[1747249301304,9.98221199,176.51,176.43,5.6669]
[1747249301707,9.98221199,176.51,176.42,1.7738]
[1747249302204,5.6661,176.46,176.42,7.4412]
[1747249302606,82.3,176.52,176.4,9.98221199]
[1747249302806,5.6654,176.49,176.4,9.98221199]
[1747249303005,9.98221199,176.51,176.4,9.98221199]
[1747249303405,5.6651,176.5,176.46,5.666]
[1747249303604,82.3,176.52,176.46,5.666]
[1747249304301,5.6652,176.49,176.46,5.666]
[1747249305713,5.6652,176.49,176.45,5.6662]
[1747249306114,5.6655,176.48,176.45,5.6662]
[1747249306312,82.3,176.52,176.4,9.98221199]
[1747249307214,5.6651,176.5,176.46,5.666]
[1747249308313,82.3,176.52,176.45,5.6663]
[1747249309323,5.6655,176.48,176.45,5.6663]
[1747249309723,92.28221199,176.52,176.45,5.6663]
[1747249310223,5.6654,176.49,176.45,5.6663]
[1747249310422,92.28221199,176.52,176.46,5.666]
[1747249310621,5.6649,176.5,176.46,5.666]
[1747249311223,5.6652,176.49,176.46,5.666]
[1747249311422,5.6652,176.49,176.45,5.6664]
[1747249312422,5.6655,176.48,176.45,5.6664]
[1747249313023,5.6653,176.49,176.4,9.98221199]
[1747249313518,5.6653,176.49,176.45,5.6662]
[1747249313724,5.6653,176.49,176.4,9.98221199]
[1747249314319,5.6648,176.5,176.4,9.98221199]
[1747249314518,82.3,176.52,176.4,9.98221199]
[1747249314721,82.88,176.54,176.4,9.98221199]